[Event "December 5 Late 2023"]
[Site "https://www.chess.com"]
[Date "2023.12.05"]
[Round "4"]
[White "Einarsson, Halldor Gretar"]
[Black "Winkels, Marcel"]
[Result "1-0"]
[Board "181"]
[TimeControl "180+1"]
[WhiteFideId "2300150"]
[BlackFideId "1003887"]
[WhiteElo "2211"]
[BlackElo "1999"]
[WhiteTeam "ISL"]
[BlackTeam "NED"]
[WhiteClock "0:01:15"]
[BlackClock "0:00:00"]

1. d4 {[%clk 0:02:59]}  Nf6 {[%clk 0:02:58]} 2. c4 {[%clk 0:02:58]}  c5 {[%clk 0:02:58]} 3. d5 {[%clk 0:02:58]}  e6 {[%clk 0:02:59]} 4. Nc3 {[%clk 0:02:58]}  exd5 {[%clk 0:03:00]} 5. cxd5 {[%clk 0:02:58]}  d6 {[%clk 0:03:00]} 6. e4 {[%clk 0:02:58]}  g6 {[%clk 0:03:01]} 7. h3 {[%clk 0:02:57]}  a6 {[%clk 0:03:01]} 8. a4 {[%clk 0:02:57]}  Bg7 {[%clk 0:03:01]} 9. Nf3 {[%clk 0:02:57]}  O-O {[%clk 0:03:01]} 10. Bd3 {[%clk 0:02:57]}  Nbd7 {[%clk 0:02:56]} 11. O-O {[%clk 0:02:55]}  Nh5 {[%clk 0:02:56]} 12. Bg5 {[%clk 0:02:52]}  Bf6 {[%clk 0:02:55]} 13. Be3 {[%clk 0:02:48]}  Ne5 {[%clk 0:02:53]} 14. Be2 {[%clk 0:02:47]}  Ng7 {[%clk 0:02:43]} 15. Qd2 {[%clk 0:02:44]}  Re8 {[%clk 0:02:41]} 16. Rfb1 {[%clk 0:02:39]}  Rb8 {[%clk 0:02:37]} 17. b4 {[%clk 0:02:37]}  cxb4 {[%clk 0:02:36]} 18. Rxb4 {[%clk 0:02:36]}  Qc7 {[%clk 0:02:27]} 19. Rc1 {[%clk 0:02:23]}  Qa5 {[%clk 0:02:23]} 20. Rcb1 {[%clk 0:02:19]}  Bd7 {[%clk 0:02:17]} 21. Bb6 {[%clk 0:02:13]}  Qxb4 {[%clk 0:02:04]} 22. Rxb4 {[%clk 0:02:11]}  Rec8 {[%clk 0:02:04]} 23. Nd1 {[%clk 0:02:06]}  h6 {[%clk 0:01:57]} 24. Nxe5 {[%clk 0:02:03]}  Bxe5 {[%clk 0:01:56]} 25. Bd4 {[%clk 0:02:03]}  Bxd4 {[%clk 0:01:48]} 26. Qxd4 {[%clk 0:02:00]}  Rc5 {[%clk 0:01:48]} 27. e5 {[%clk 0:01:56]}  Rbc8 {[%clk 0:01:45]} 28. exd6 {[%clk 0:01:54]}  b5 {[%clk 0:01:44]} 29. axb5 {[%clk 0:01:53]}  axb5 {[%clk 0:01:44]} 30. Ne3 {[%clk 0:01:51]}  g5 {[%clk 0:01:39]} 31. g4 {[%clk 0:01:49]}  f5 {[%clk 0:01:34]} 32. Qf6 {[%clk 0:01:45]}  Rf8 {[%clk 0:01:32]} 33. Qxh6 {[%clk 0:01:42]}  fxg4 {[%clk 0:01:32]} 34. hxg4 {[%clk 0:01:42]}  Rf4 {[%clk 0:01:26]} 35. Rxf4 {[%clk 0:01:38]}  gxf4 {[%clk 0:01:25]} 36. Qxf4 {[%clk 0:01:37]}  Be8 {[%clk 0:00:57]} 37. Bd3 {[%clk 0:01:36]}  Bd7 {[%clk 0:00:55]} 38. Qf6 {[%clk 0:01:32]}  Rc8 {[%clk 0:00:50]} 39. Qe7 {[%clk 0:01:31]}  Rc3 {[%clk 0:00:32]} 40. Qd8+ {[%clk 0:01:25]}  Be8 {[%clk 0:00:25]} 41. Bg6 {[%clk 0:01:24]}  b4 {[%clk 0:00:23]} 42. Bxe8 {[%clk 0:01:22]}  Kh7 {[%clk 0:00:24]} 43. Bh5 {[%clk 0:01:20]}  b3 {[%clk 0:00:22]} 44. Qf6 {[%clk 0:01:16]}  b2 {[%clk 0:00:21]} 45. Bg6+ {[%clk 0:01:16]}  Kg8 {[%clk 0:00:00]} 46. Qf7+ {[%clk 0:01:15]} 1-0

[Event "December 5 Late 2023"]
[Site "https://www.chess.com"]
[Date "2023.12.05"]
[Round "5"]
[White "Xiong, Jeffery"]
[Black "Nakamura, Hikaru"]
[Result "1/2-1/2"]
[Board "2"]
[TimeControl "180+1"]
[WhiteFideId "2047640"]
[BlackFideId "2016192"]
[WhiteElo "3011"]
[BlackElo "3243"]
[WhiteTeam "USA"]
[BlackTeam "USA"]
[WhiteClock "0:00:16"]
[BlackClock "0:00:23"]

1. Nf3 {[%clk 0:03:00]}  g6 {[%clk 0:02:58]} 2. e4 {[%clk 0:03:00]}  c5 {[%clk 0:02:58]} 3. c3 {[%clk 0:02:58]}  d5 {[%clk 0:02:58]} 4. e5 {[%clk 0:02:58]}  a6 {[%clk 0:02:58]} 5. d4 {[%clk 0:02:58]}  Nc6 {[%clk 0:02:57]} 6. Be2 {[%clk 0:02:56]}  Bg4 {[%clk 0:02:56]} 7. Nbd2 {[%clk 0:02:55]}  e6 {[%clk 0:02:54]} 8. h3 {[%clk 0:02:52]}  Bxf3 {[%clk 0:02:54]} 9. Nxf3 {[%clk 0:02:53]}  cxd4 {[%clk 0:02:55]} 10. cxd4 {[%clk 0:02:52]}  Bh6 {[%clk 0:02:55]} 11. Bxh6 {[%clk 0:02:46]}  Nxh6 {[%clk 0:02:56]} 12. g4 {[%clk 0:02:46]}  Qa5+ {[%clk 0:02:53]} 13. Qd2 {[%clk 0:02:46]}  Qxd2+ {[%clk 0:02:53]} 14. Kxd2 {[%clk 0:02:46]}  Ng8 {[%clk 0:02:52]} 15. Rac1 {[%clk 0:02:29]}  Nge7 {[%clk 0:02:39]} 16. a3 {[%clk 0:02:28]}  Kd7 {[%clk 0:02:34]} 17. Ke3 {[%clk 0:02:25]}  h6 {[%clk 0:02:31]} 18. Ne1 {[%clk 0:02:18]}  b6 {[%clk 0:02:15]} 19. b4 {[%clk 0:02:15]}  g5 {[%clk 0:01:44]} 20. Bd3 {[%clk 0:02:10]}  b5 {[%clk 0:01:37]} 21. Bb1 {[%clk 0:01:56]}  Nc8 {[%clk 0:01:36]} 22. Nd3 {[%clk 0:01:56]}  Nb6 {[%clk 0:01:37]} 23. Nc5+ {[%clk 0:01:52]}  Ke7 {[%clk 0:01:37]} 24. Nxe6 {[%clk 0:01:44]}  Nc4+ {[%clk 0:01:37]} 25. Rxc4 {[%clk 0:01:45]}  dxc4 {[%clk 0:01:35]} 26. Ng7 {[%clk 0:01:43]}  a5 {[%clk 0:01:31]} 27. Be4 {[%clk 0:01:43]}  axb4 {[%clk 0:01:29]} 28. Bxc6 {[%clk 0:01:40]}  Rxa3+ {[%clk 0:01:26]} 29. Ke4 {[%clk 0:01:40]}  b3 {[%clk 0:01:22]} 30. d5 {[%clk 0:01:38]}  Rb8 {[%clk 0:01:11]} 31. Nf5+ {[%clk 0:01:33]}  Kf8 {[%clk 0:01:11]} 32. e6 {[%clk 0:01:33]}  fxe6 {[%clk 0:01:09]} 33. dxe6 {[%clk 0:01:34]}  b2 {[%clk 0:01:09]} 34. Rb1 {[%clk 0:00:58]}  c3 {[%clk 0:01:09]} 35. Kd3 {[%clk 0:00:59]}  Ra1 {[%clk 0:01:06]} 36. Kc2 {[%clk 0:00:55]}  b4 {[%clk 0:01:06]} 37. e7+ {[%clk 0:00:56]}  Kf7 {[%clk 0:01:07]} 38. Bd5+ {[%clk 0:00:56]}  Kf6 {[%clk 0:01:07]} 39. Be4 {[%clk 0:00:39]}  Ra3 {[%clk 0:00:43]} 40. Bc6 {[%clk 0:00:37]}  Ra1 {[%clk 0:00:39]} 41. e8=Q {[%clk 0:00:28]}  Rxe8 {[%clk 0:00:35]} 42. Bxe8 {[%clk 0:00:28]}  b3+ {[%clk 0:00:35]} 43. Kxc3 {[%clk 0:00:29]}  Rxb1 {[%clk 0:00:35]} 44. Bh5 {[%clk 0:00:22]}  Rh1 {[%clk 0:00:22]} 45. Kxb2 {[%clk 0:00:22]}  Rxh3 {[%clk 0:00:23]} 46. Nxh6 {[%clk 0:00:20]}  Rf3 {[%clk 0:00:22]} 47. Nf5 {[%clk 0:00:14]}  Rxf2+ {[%clk 0:00:21]} 48. Kxb3 {[%clk 0:00:14]}  Rxf5 {[%clk 0:00:21]} 49. gxf5 {[%clk 0:00:15]}  Kxf5 {[%clk 0:00:22]} 50. Kc4 {[%clk 0:00:15]}  g4 {[%clk 0:00:23]} 51. Bxg4+ {[%clk 0:00:16]} 1/2-1/2

[Event "December 5 Late 2023"]
[Site "https://www.chess.com"]
[Date "2023.12.05"]
[Round "5"]
[White "Erigaisi Arjun"]
[Black "Zhigalko, Sergei"]
[Result "1/2-1/2"]
[Board "6"]
[TimeControl "180+1"]
[WhiteFideId "35009192"]
[BlackFideId "13502956"]
[WhiteElo "3109"]
[BlackElo "2928"]
[WhiteTeam "IND"]
[BlackTeam "BLR"]
[WhiteClock "0:01:15"]
[BlackClock "0:00:15"]

1. b3 {[%clk 0:03:00]}  e5 {[%clk 0:02:59]} 2. Bb2 {[%clk 0:03:01]}  Nc6 {[%clk 0:02:59]} 3. c4 {[%clk 0:03:01]}  Nf6 {[%clk 0:02:58]} 4. e3 {[%clk 0:03:02]}  g6 {[%clk 0:02:52]} 5. Nc3 {[%clk 0:03:00]}  Bg7 {[%clk 0:02:52]} 6. h3 {[%clk 0:02:58]}  O-O {[%clk 0:02:52]} 7. d3 {[%clk 0:02:58]}  d5 {[%clk 0:02:39]} 8. cxd5 {[%clk 0:02:59]}  Nxd5 {[%clk 0:02:40]} 9. a3 {[%clk 0:02:57]}  e4 {[%clk 0:02:06]} 10. d4 {[%clk 0:02:56]}  Nxc3 {[%clk 0:01:50]} 11. Bxc3 {[%clk 0:02:57]}  Ne7 {[%clk 0:01:49]} 12. Qc2 {[%clk 0:02:52]}  Nd5 {[%clk 0:01:47]} 13. Bb2 {[%clk 0:02:52]}  c6 {[%clk 0:01:31]} 14. Bc4 {[%clk 0:02:45]}  Re8 {[%clk 0:01:28]} 15. Ne2 {[%clk 0:02:42]}  Qg5 {[%clk 0:01:27]} 16. Ng3 {[%clk 0:02:40]}  Nxe3 {[%clk 0:01:20]} 17. fxe3 {[%clk 0:02:34]}  Qxg3+ {[%clk 0:01:20]} 18. Qf2 {[%clk 0:02:35]}  Qxf2+ {[%clk 0:01:19]} 19. Kxf2 {[%clk 0:02:36]}  Be6 {[%clk 0:01:16]} 20. a4 {[%clk 0:02:35]}  f5 {[%clk 0:01:12]} 21. a5 {[%clk 0:02:34]}  Kf7 {[%clk 0:01:00]} 22. a6 {[%clk 0:02:30]}  b6 {[%clk 0:00:56]} 23. h4 {[%clk 0:02:26]}  Rad8 {[%clk 0:00:46]} 24. h5 {[%clk 0:02:22]}  g5 {[%clk 0:00:35]} 25. Rad1 {[%clk 0:02:09]}  Bxc4 {[%clk 0:00:23]} 26. bxc4 {[%clk 0:02:10]}  c5 {[%clk 0:00:24]} 27. Ke2 {[%clk 0:02:01]}  cxd4 {[%clk 0:00:22]} 28. Bxd4 {[%clk 0:02:01]}  Bxd4 {[%clk 0:00:21]} 29. Rxd4 {[%clk 0:02:02]}  Rxd4 {[%clk 0:00:20]} 30. exd4 {[%clk 0:02:03]}  f4 {[%clk 0:00:20]} 31. Rb1 {[%clk 0:02:00]}  Rc8 {[%clk 0:00:20]} 32. c5 {[%clk 0:01:58]}  bxc5 {[%clk 0:00:19]} 33. d5 {[%clk 0:01:52]}  c4 {[%clk 0:00:19]} 34. Rb7+ {[%clk 0:01:52]}  Kf6 {[%clk 0:00:19]} 35. d6 {[%clk 0:01:45]}  Ke6 {[%clk 0:00:17]} 36. d7 {[%clk 0:01:41]}  Rd8 {[%clk 0:00:11]} 37. Rxa7 {[%clk 0:01:41]}  c3 {[%clk 0:00:10]} 38. Rb7 {[%clk 0:01:34]}  c2 {[%clk 0:00:09]} 39. Kd2 {[%clk 0:01:28]}  f3 {[%clk 0:00:10]} 40. gxf3 {[%clk 0:01:25]}  exf3 {[%clk 0:00:11]} 41. Kxc2 {[%clk 0:01:21]}  f2 {[%clk 0:00:10]} 42. Rb1 {[%clk 0:01:22]}  g4 {[%clk 0:00:08]} 43. Kd3 {[%clk 0:01:16]}  Rxd7+ {[%clk 0:00:05]} 44. Ke2 {[%clk 0:01:16]}  g3 {[%clk 0:00:05]} 45. Kf3 {[%clk 0:01:15]}  Rf7+ {[%clk 0:00:05]} 46. Kg2 {[%clk 0:01:15]}  Kd5 {[%clk 0:00:03]} 47. Ra1 {[%clk 0:01:10]}  Ra7 {[%clk 0:00:02]} 48. Kxg3 {[%clk 0:01:04]}  Rxa6 {[%clk 0:00:02]} 49. Rf1 {[%clk 0:01:05]}  Ra3+ {[%clk 0:00:01]} 50. Kg4 {[%clk 0:01:05]}  Ra4+ {[%clk 0:00:01]} 51. Kg3 {[%clk 0:01:04]}  Ra2 {[%clk 0:00:02]} 52. Rxf2 {[%clk 0:01:03]}  Rxf2 {[%clk 0:00:03]} 53. Kxf2 {[%clk 0:01:04]}  Ke4 {[%clk 0:00:03]} 54. Kg3 {[%clk 0:01:04]}  Kf5 {[%clk 0:00:03]} 55. Kh4 {[%clk 0:01:05]}  h6 {[%clk 0:00:04]} 56. Kg3 {[%clk 0:01:06]}  Kg5 {[%clk 0:00:05]} 57. Kh3 {[%clk 0:01:07]}  Kxh5 {[%clk 0:00:06]} 58. Kh2 {[%clk 0:01:08]}  Kg5 {[%clk 0:00:06]} 59. Kh1 {[%clk 0:01:09]}  h5 {[%clk 0:00:07]} 60. Kh2 {[%clk 0:01:09]}  h4 {[%clk 0:00:08]} 61. Kh1 {[%clk 0:01:10]}  Kh5 {[%clk 0:00:09]} 62. Kh2 {[%clk 0:01:11]}  Kg4 {[%clk 0:00:10]} 63. Kh1 {[%clk 0:01:12]}  h3 {[%clk 0:00:11]} 64. Kh2 {[%clk 0:01:13]}  Kh4 {[%clk 0:00:12]} 65. Kh1 {[%clk 0:01:14]}  Kg3 {[%clk 0:00:13]} 66. Kg1 {[%clk 0:01:14]}  h2+ {[%clk 0:00:14]} 67. Kh1 {[%clk 0:01:15]}  Kh3 {[%clk 0:00:15]} 1/2-1/2

[Event "December 5 Late 2023"]
[Site "https://www.chess.com"]
[Date "2023.12.05"]
[Round "5"]
[White "Andreikin, Dmitry"]
[Black "Henriquez Villagra, Cristobal"]
[Result "1-0"]
[Board "9"]
[TimeControl "180+1"]
[WhiteFideId "4158814"]
[BlackFideId "3409350"]
[WhiteElo "3108"]
[BlackElo "2997"]
[WhiteTeam "FID"]
[BlackTeam "CHI"]
[WhiteClock "0:00:18"]
[BlackClock "0:00:03"]

1. Nf3 {[%clk 0:03:00]}  Nf6 {[%clk 0:03:00]} 2. c4 {[%clk 0:03:01]}  g6 {[%clk 0:03:00]} 3. b4 {[%clk 0:03:01]}  Bg7 {[%clk 0:03:01]} 4. Bb2 {[%clk 0:03:01]}  O-O {[%clk 0:02:58]} 5. e3 {[%clk 0:03:00]}  d6 {[%clk 0:02:53]} 6. Be2 {[%clk 0:03:00]}  e5 {[%clk 0:02:53]} 7. d3 {[%clk 0:03:01]}  b6 {[%clk 0:02:44]} 8. O-O {[%clk 0:03:00]}  Bb7 {[%clk 0:02:44]} 9. Nfd2 {[%clk 0:02:58]}  Re8 {[%clk 0:02:37]} 10. Bf3 {[%clk 0:02:57]}  c6 {[%clk 0:02:14]} 11. b5 {[%clk 0:02:53]}  d5 {[%clk 0:02:15]} 12. Nc3 {[%clk 0:02:50]}  cxb5 {[%clk 0:02:02]} 13. Nxb5 {[%clk 0:02:41]}  Nc6 {[%clk 0:01:53]} 14. cxd5 {[%clk 0:02:33]}  Nxd5 {[%clk 0:01:51]} 15. Bxd5 {[%clk 0:02:32]}  Qxd5 {[%clk 0:01:52]} 16. Nc7 {[%clk 0:02:33]}  Qxd3 {[%clk 0:01:49]} 17. Nf3 {[%clk 0:02:31]}  Qf5 {[%clk 0:01:43]} 18. Nxa8 {[%clk 0:02:21]}  Bxa8 {[%clk 0:01:38]} 19. Rc1 {[%clk 0:02:21]}  e4 {[%clk 0:00:57]} 20. Nd4 {[%clk 0:02:20]}  Bxd4 {[%clk 0:00:55]} 21. Bxd4 {[%clk 0:02:21]}  Rd8 {[%clk 0:00:55]} 22. Rc4 {[%clk 0:02:15]}  Qe6 {[%clk 0:00:42]} 23. Qc1 {[%clk 0:02:04]}  b5 {[%clk 0:00:42]} 24. Rc5 {[%clk 0:01:56]}  Nxd4 {[%clk 0:00:43]} 25. exd4 {[%clk 0:01:56]}  Bd5 {[%clk 0:00:43]} 26. Rxb5 {[%clk 0:01:53]}  Bxa2 {[%clk 0:00:32]} 27. Re5 {[%clk 0:01:48]}  Qb6 {[%clk 0:00:31]} 28. Rxe4 {[%clk 0:01:45]}  Bd5 {[%clk 0:00:30]} 29. Rh4 {[%clk 0:01:42]}  Qf6 {[%clk 0:00:23]} 30. Qh6 {[%clk 0:01:42]}  Qg7 {[%clk 0:00:23]} 31. Qg5 {[%clk 0:01:39]}  f6 {[%clk 0:00:24]} 32. Qd2 {[%clk 0:01:35]}  Qb7 {[%clk 0:00:21]} 33. Rg4 {[%clk 0:01:26]}  f5 {[%clk 0:00:20]} 34. Rg3 {[%clk 0:01:25]}  Qb6 {[%clk 0:00:21]} 35. h4 {[%clk 0:01:23]}  Bc4 {[%clk 0:00:22]} 36. Rd1 {[%clk 0:01:22]}  a5 {[%clk 0:00:20]} 37. h5 {[%clk 0:01:22]}  a4 {[%clk 0:00:17]} 38. hxg6 {[%clk 0:01:22]}  hxg6 {[%clk 0:00:18]} 39. Qh6 {[%clk 0:01:19]}  Bf7 {[%clk 0:00:19]} 40. Rh3 {[%clk 0:01:14]}  Qf6 {[%clk 0:00:19]} 41. d5 {[%clk 0:01:08]}  Rxd5 {[%clk 0:00:18]} 42. Qh7+ {[%clk 0:01:05]}  Kf8 {[%clk 0:00:18]} 43. Rxd5 {[%clk 0:01:05]}  Bxd5 {[%clk 0:00:19]} 44. Qd7 {[%clk 0:00:59]}  Bc6 {[%clk 0:00:18]} 45. Qc8+ {[%clk 0:00:59]}  Ke7 {[%clk 0:00:16]} 46. Qc7+ {[%clk 0:00:45]}  Kf8 {[%clk 0:00:14]} 47. Rd3 {[%clk 0:00:41]}  Be8 {[%clk 0:00:14]} 48. Rd8 {[%clk 0:00:39]}  Qe7 {[%clk 0:00:12]} 49. Qb6 {[%clk 0:00:35]}  Qe1+ {[%clk 0:00:08]} 50. Kh2 {[%clk 0:00:35]}  Qe7 {[%clk 0:00:08]} 51. Ra8 {[%clk 0:00:34]}  Kf7 {[%clk 0:00:06]} 52. Qb8 {[%clk 0:00:30]}  Bd7 {[%clk 0:00:06]} 53. Qg8+ {[%clk 0:00:30]}  Kf6 {[%clk 0:00:07]} 54. Qh8+ {[%clk 0:00:22]}  Kf7 {[%clk 0:00:05]} 55. Ra7 {[%clk 0:00:19]}  Qd6+ {[%clk 0:00:04]} 56. g3 {[%clk 0:00:20]}  Qe7 {[%clk 0:00:03]} 57. Qh7+ {[%clk 0:00:19]}  Kf6 {[%clk 0:00:03]} 58. Rxd7 {[%clk 0:00:18]} 1-0

[Event "December 5 Late 2023"]
[Site "https://www.chess.com"]
[Date "2023.12.05"]
[Round "5"]
[White "Sarana, Alexey"]
[Black "Rasulov, Vugar"]
[Result "1-0"]
[Board "11"]
[TimeControl "180+1"]
[WhiteFideId "24133795"]
[BlackFideId "13402390"]
[WhiteElo "3003"]
[BlackElo "2913"]
[WhiteTeam "SRB"]
[BlackTeam "AZE"]
[WhiteClock "0:01:30"]
[BlackClock "0:00:13"]

1. d4 {[%clk 0:03:00]}  Nf6 {[%clk 0:03:00]} 2. c4 {[%clk 0:03:01]}  e6 {[%clk 0:03:00]} 3. Nc3 {[%clk 0:03:02]}  Bb4 {[%clk 0:03:00]} 4. e3 {[%clk 0:03:02]}  O-O {[%clk 0:02:58]} 5. Bd3 {[%clk 0:03:02]}  c5 {[%clk 0:02:57]} 6. Ne2 {[%clk 0:03:00]}  cxd4 {[%clk 0:02:55]} 7. exd4 {[%clk 0:03:01]}  d5 {[%clk 0:02:56]} 8. c5 {[%clk 0:03:02]}  Nc6 {[%clk 0:02:54]} 9. O-O {[%clk 0:03:00]}  h6 {[%clk 0:02:48]} 10. a3 {[%clk 0:02:58]}  Bxc3 {[%clk 0:02:43]} 11. bxc3 {[%clk 0:02:58]}  e5 {[%clk 0:02:44]} 12. Re1 {[%clk 0:02:47]}  Re8 {[%clk 0:02:40]} 13. Rb1 {[%clk 0:02:45]}  Rb8 {[%clk 0:02:18]} 14. Bb5 {[%clk 0:02:42]}  Bd7 {[%clk 0:02:00]} 15. h3 {[%clk 0:02:36]}  Ne4 {[%clk 0:01:52]} 16. f3 {[%clk 0:02:25]}  Nf6 {[%clk 0:01:52]} 17. a4 {[%clk 0:02:08]}  a6 {[%clk 0:01:49]} 18. Bxc6 {[%clk 0:02:08]}  bxc6 {[%clk 0:01:49]} 19. Rxb8 {[%clk 0:02:05]}  Qxb8 {[%clk 0:01:50]} 20. dxe5 {[%clk 0:02:05]}  Qxe5 {[%clk 0:01:47]} 21. Bf4 {[%clk 0:02:05]}  Qe6 {[%clk 0:01:36]} 22. Bg3 {[%clk 0:02:03]}  Qf5 {[%clk 0:01:18]} 23. Nd4 {[%clk 0:01:59]}  Rxe1+ {[%clk 0:01:15]} 24. Qxe1 {[%clk 0:01:55]}  Qd3 {[%clk 0:01:16]} 25. Be5 {[%clk 0:01:51]}  Ne8 {[%clk 0:01:15]} 26. a5 {[%clk 0:01:38]}  Qg6 {[%clk 0:00:58]} 27. Kh2 {[%clk 0:01:33]}  Kf8 {[%clk 0:00:40]} 28. Qe2 {[%clk 0:01:33]}  Qg5 {[%clk 0:00:34]} 29. Bg3 {[%clk 0:01:29]}  Qe7 {[%clk 0:00:27]} 30. Qxa6 {[%clk 0:01:29]}  Qxc5 {[%clk 0:00:28]} 31. Qb6 {[%clk 0:01:29]}  Qxb6 {[%clk 0:00:18]} 32. axb6 {[%clk 0:01:30]}  Bc8 {[%clk 0:00:19]} 33. Nxc6 {[%clk 0:01:30]}  Nf6 {[%clk 0:00:13]} 34. Na5 {[%clk 0:01:30]} 1-0

[Event "December 5 Late 2023"]
[Site "https://www.chess.com"]
[Date "2023.12.05"]
[Round "5"]
[White "Paravyan, David"]
[Black "Urazayev, Arystanbek"]
[Result "1-0"]
[Board "12"]
[TimeControl "180+1"]
[WhiteFideId "4194985"]
[BlackFideId "13709810"]
[WhiteElo "2999"]
[BlackElo "2781"]
[WhiteTeam "FID"]
[BlackTeam "KAZ"]
[WhiteClock "0:00:18"]
[BlackClock "0:00:02"]

1. e4 {[%clk 0:03:00]}  c6 {[%clk 0:02:56]} 2. Nf3 {[%clk 0:03:00]}  d5 {[%clk 0:02:57]} 3. Nc3 {[%clk 0:03:00]}  dxe4 {[%clk 0:02:57]} 4. Nxe4 {[%clk 0:03:01]}  Nf6 {[%clk 0:02:58]} 5. Qe2 {[%clk 0:03:01]}  Nxe4 {[%clk 0:02:58]} 6. Qxe4 {[%clk 0:03:02]}  Be6 {[%clk 0:02:59]} 7. Qf4 {[%clk 0:02:55]}  Nd7 {[%clk 0:02:37]} 8. Ng5 {[%clk 0:02:49]}  Bd5 {[%clk 0:02:30]} 9. c4 {[%clk 0:02:42]}  e5 {[%clk 0:02:25]} 10. Qg3 {[%clk 0:02:42]}  h6 {[%clk 0:02:25]} 11. cxd5 {[%clk 0:02:39]}  hxg5 {[%clk 0:02:24]} 12. dxc6 {[%clk 0:02:39]}  bxc6 {[%clk 0:02:25]} 13. Bc4 {[%clk 0:02:32]}  Bd6 {[%clk 0:02:18]} 14. Qf3 {[%clk 0:02:30]}  O-O {[%clk 0:02:03]} 15. h4 {[%clk 0:02:24]}  e4 {[%clk 0:01:59]} 16. Qf5 {[%clk 0:02:01]}  g4 {[%clk 0:01:46]} 17. d4 {[%clk 0:02:01]}  Bb4+ {[%clk 0:01:37]} 18. Kf1 {[%clk 0:01:58]}  Nb6 {[%clk 0:01:34]} 19. Bb3 {[%clk 0:01:57]}  Qxd4 {[%clk 0:01:32]} 20. Be3 {[%clk 0:01:24]}  Qxb2 {[%clk 0:01:19]} 21. Rd1 {[%clk 0:01:25]}  Nd5 {[%clk 0:01:00]} 22. h5 {[%clk 0:01:24]}  Nxe3+ {[%clk 0:00:52]} 23. fxe3 {[%clk 0:01:25]}  Qf6 {[%clk 0:00:40]} 24. Qxf6 {[%clk 0:01:21]}  gxf6 {[%clk 0:00:40]} 25. Rd4 {[%clk 0:01:19]}  a5 {[%clk 0:00:22]} 26. Rxe4 {[%clk 0:01:18]}  f5 {[%clk 0:00:22]} 27. Rf4 {[%clk 0:01:18]}  a4 {[%clk 0:00:20]} 28. Bc2 {[%clk 0:01:17]}  Be7 {[%clk 0:00:13]} 29. Bxf5 {[%clk 0:01:16]}  Rab8 {[%clk 0:00:08]} 30. Rxg4+ {[%clk 0:01:14]}  Kh8 {[%clk 0:00:08]} 31. Rxa4 {[%clk 0:01:14]}  Rb2 {[%clk 0:00:07]} 32. h6 {[%clk 0:00:53]}  Bg5 {[%clk 0:00:07]} 33. h7 {[%clk 0:00:36]}  Bxe3 {[%clk 0:00:06]} 34. Rh3 {[%clk 0:00:36]}  Rf2+ {[%clk 0:00:06]} 35. Ke1 {[%clk 0:00:34]}  Rxf5 {[%clk 0:00:06]} 36. Rxe3 {[%clk 0:00:34]}  Kxh7 {[%clk 0:00:06]} 37. Rg3 {[%clk 0:00:32]}  Rh5 {[%clk 0:00:06]} 38. Rc4 {[%clk 0:00:32]}  Re8+ {[%clk 0:00:06]} 39. Kd2 {[%clk 0:00:31]}  Re6 {[%clk 0:00:07]} 40. a4 {[%clk 0:00:31]}  c5 {[%clk 0:00:02]} 41. a5 {[%clk 0:00:31]}  Ra6 {[%clk 0:00:01]} 42. Ra3 {[%clk 0:00:28]}  Rg5 {[%clk 0:00:01]} 43. g4 {[%clk 0:00:28]}  Kg7 {[%clk 0:00:02]} 44. Kc3 {[%clk 0:00:27]}  Rd5 {[%clk 0:00:02]} 45. Rca4 {[%clk 0:00:27]}  Re5 {[%clk 0:00:03]} 46. Kc4 {[%clk 0:00:27]}  Ra8 {[%clk 0:00:03]} 47. a6 {[%clk 0:00:27]}  Ra7 {[%clk 0:00:01]} 48. Kb5 {[%clk 0:00:27]}  Re6 {[%clk 0:00:02]} 49. Kxc5 {[%clk 0:00:26]}  Rg6 {[%clk 0:00:03]} 50. Kb5 {[%clk 0:00:27]}  Rf6 {[%clk 0:00:03]} 51. Rc4 {[%clk 0:00:26]}  Rg6 {[%clk 0:00:04]} 52. Raa4 {[%clk 0:00:26]}  Ra8 {[%clk 0:00:04]} 53. a7 {[%clk 0:00:25]}  Rf6 {[%clk 0:00:04]} 54. Rc6 {[%clk 0:00:23]}  Rf1 {[%clk 0:00:05]} 55. Ka6 {[%clk 0:00:21]}  Rb1 {[%clk 0:00:05]} 56. Rb6 {[%clk 0:00:21]}  Re1 {[%clk 0:00:05]} 57. Kb7 {[%clk 0:00:20]}  Ree8 {[%clk 0:00:05]} 58. Rc4 {[%clk 0:00:20]}  Rad8 {[%clk 0:00:05]} 59. Rc7 {[%clk 0:00:20]}  Re1 {[%clk 0:00:05]} 60. a8=Q {[%clk 0:00:19]}  Rxa8 {[%clk 0:00:06]} 61. Kxa8 {[%clk 0:00:20]}  Rf1 {[%clk 0:00:05]} 62. g5 {[%clk 0:00:19]}  Rf5 {[%clk 0:00:06]} 63. g6 {[%clk 0:00:19]}  Kh6 {[%clk 0:00:04]} 64. gxf7+ {[%clk 0:00:18]}  Kg7 {[%clk 0:00:02]} 65. f8=Q+ {[%clk 0:00:18]} 1-0

[Event "December 5 Late 2023"]
[Site "https://www.chess.com"]
[Date "2023.12.05"]
[Round "5"]
[White "Wafa, Hamed"]
[Black "Pranav, V"]
[Result "0-1"]
[Board "15"]
[TimeControl "180+1"]
[WhiteFideId "10628452"]
[BlackFideId "25060783"]
[WhiteElo "2709"]
[BlackElo "3053"]
[WhiteTeam "EGY"]
[BlackTeam "IND"]
[WhiteClock "0:00:03"]
[BlackClock "0:00:05"]

1. e4 {[%clk 0:03:00]}  e5 {[%clk 0:02:59]} 2. Nf3 {[%clk 0:03:00]}  Nc6 {[%clk 0:03:00]} 3. Bb5 {[%clk 0:03:00]}  a6 {[%clk 0:03:00]} 4. Bxc6 {[%clk 0:02:59]}  dxc6 {[%clk 0:03:00]} 5. O-O {[%clk 0:03:00]}  Bg4 {[%clk 0:02:58]} 6. h3 {[%clk 0:02:59]}  Bxf3 {[%clk 0:02:59]} 7. Qxf3 {[%clk 0:02:59]}  Qd7 {[%clk 0:03:00]} 8. d3 {[%clk 0:02:55]}  f6 {[%clk 0:02:59]} 9. a4 {[%clk 0:02:55]}  h5 {[%clk 0:02:59]} 10. Na3 {[%clk 0:02:41]}  g5 {[%clk 0:02:59]} 11. Qe2 {[%clk 0:02:40]}  g4 {[%clk 0:02:55]} 12. h4 {[%clk 0:02:37]}  Bxa3 {[%clk 0:02:49]} 13. bxa3 {[%clk 0:02:35]}  Ne7 {[%clk 0:02:49]} 14. a5 {[%clk 0:02:34]}  c5 {[%clk 0:02:12]} 15. Be3 {[%clk 0:02:32]}  Qd6 {[%clk 0:02:12]} 16. Rab1 {[%clk 0:02:30]}  O-O-O {[%clk 0:02:11]} 17. Rb3 {[%clk 0:02:24]}  Nc6 {[%clk 0:02:10]} 18. Rc3 {[%clk 0:02:17]}  Nd4 {[%clk 0:01:19]} 19. Bxd4 {[%clk 0:02:15]}  cxd4 {[%clk 0:01:20]} 20. Rb3 {[%clk 0:02:13]}  c6 {[%clk 0:01:19]} 21. g3 {[%clk 0:02:09]}  Qc5 {[%clk 0:01:17]} 22. Rfb1 {[%clk 0:02:08]}  Rd7 {[%clk 0:01:15]} 23. Qd2 {[%clk 0:02:08]}  Kb8 {[%clk 0:01:13]} 24. Rb6 {[%clk 0:02:03]}  Ka7 {[%clk 0:01:11]} 25. R1b4 {[%clk 0:02:01]}  Rf8 {[%clk 0:01:05]} 26. Rb3 {[%clk 0:01:48]}  f5 {[%clk 0:01:00]} 27. exf5 {[%clk 0:01:35]}  Rxf5 {[%clk 0:01:01]} 28. R6b4 {[%clk 0:01:32]}  Rdf7 {[%clk 0:00:54]} 29. Rb2 {[%clk 0:01:09]}  Ka8 {[%clk 0:00:44]} 30. Rb6 {[%clk 0:01:02]}  Qxa3 {[%clk 0:00:30]} 31. Qh6 {[%clk 0:00:55]}  Qxa5 {[%clk 0:00:14]} 32. R2b4 {[%clk 0:00:32]}  Ka7 {[%clk 0:00:05]} 33. Qh8 {[%clk 0:00:28]}  Qxb6 {[%clk 0:00:04]} 34. Rxb6 {[%clk 0:00:27]}  Kxb6 {[%clk 0:00:05]} 35. Qd8+ {[%clk 0:00:28]}  Ka7 {[%clk 0:00:05]} 36. Kf1 {[%clk 0:00:04]}  Rxf2+ {[%clk 0:00:04]} 37. Ke1 {[%clk 0:00:03]}  Rf1+ {[%clk 0:00:05]} 0-1